bitfinex/quotes_ETHUSD_20250406
["timestamp","ask_amount","ask_price","bid_price","bid_amount"]
[1743930452877,4.31771612,1791.7,1791.6,1.36258123]
[1743930459745,4.31771612,1791.7,1791.6,0.53628123]
[1743930461058,4.88001612,1791.7,1791.6,0.53628123]
[1743930461216,6.01711684,1791.7,1791.6,5.238]
[1743930461542,4.88001612,1791.7,1791.6,5.77428123]
[1743930462217,4.31771612,1791.7,1791.6,5.77428123]
[1743930464528,4.31771612,1791.7,1791.6,5.77428123]
[1743930479086,7.31771612,1791.7,1791.6,0.53628123]
[1743930479242,7.31771612,1791.7,1791.6,5.237]
[1743930479445,7.31771612,1791.7,1791.6,5.77322306]
[1743930479646,8.75481684,1791.7,1791.6,5.77322306]
[1743930480686,8.75481684,1791.7,1791.6,0.53622306]
[1743930480998,3.90712,1791.6,1791.5,5.237]
[1743930481149,6.49141104,1791.6,1791.5,5.237]
[1743930481880,6.49141104,1791.6,1791.5,5.77358877]
[1743930482064,10.21145947,1791.6,1791.5,0.53658877]
[1743930484055,3.90755,1791.4,1791.3,5.237]
[1743930484255,6.49184104,1791.4,1791.3,5.72991464]
[1743930485590,3.90755,1791.4,1791.3,5.72991464]
[1743930499224,6.49184104,1791.4,1791.3,5.72991464]
[1743930502689,7.83176714,1791.4,1791.3,0.49291464]
[1743930504027,6.49184104,1791.4,1791.3,0.49291464]
[1743930509530,3.90755,1791.4,1791.3,0.49291464]
[1743930514999,3.90755,1791.4,1791.3,1.27731464]
[1743930515198,3.90742,1791.5,1791.4,0.7844]
[1743930515517,6.90742,1791.5,1791.4,1.27849767]
[1743930529746,0.41081612,1791.7,1791.4,0.49409767]
[1743930529747,4.31773612,1791.7,1791.4,0.49409767]
[1743930529914,3.90671,1791.8,1791.5,0.84001573]
[1743930530111,3.90671,1791.8,1791.7,0.7842]
[1743930530448,6.90671,1791.8,1791.7,1.27588783]
[1743930531935,7.3156563,1791.8,1791.7,1.27588783]
[1743930535952,3.90671,1791.8,1791.7,1.27588783]
[1743930541559,3.90671,1791.8,1791.7,0.49168783]
[1743930541560,9.49100104,1791.8,1791.7,0.49168783]
[1743930541857,9.49100104,1791.8,1791.7,5.234]
[1743930542061,9.49100104,1791.8,1791.7,5.72571352]
[1743930542558,6.90671,1791.8,1791.7,5.72571352]
[1743930542762,4.31968424,1791.9,1791.7,6.50991352]
[1743930543126,4.41065,1792.0,1791.7,6.50991352]
[1743930543127,0.50438,1792.0,1791.7,6.50991352]
[1743930543330,0.50438,1792.0,1791.8,0.84000098]
[1743930543630,0.50438,1792.0,1791.8,1.33122716]
[1743930543856,0.50438,1792.0,1791.8,0.54702716]
[1743930544056,0.50438,1792.0,1791.9,0.7842]
[1743930544443,3.90611,1792.1,1791.9,1.27503412]
[1743930544748,4.32513643,1792.1,1791.9,1.27503412]
[1743930545257,3.90587,1792.2,1792.0,0.8171]
[1743930545566,6.90587,1792.2,1792.1,5.72398484]
[1743930546662,3.90561,1792.3,1792.1,5.72398484]
[1743930546959,3.90524,1792.5,1792.2,0.8171]
[1743930547166,0.00601761,1792.6,1792.2,0.48883004]
[1743930547324,0.00601761,1792.6,1792.4,0.8171]
[1743930547525,0.00601761,1792.6,1792.5,5.72085624]
[1743930550968,3.91095761,1792.6,1792.5,5.72085624]
[1743930552367,3.91095761,1792.6,1792.5,0.48685624]
[1743930552368,7.47325761,1792.6,1792.5,0.48685624]
[1743930552570,7.47325761,1792.6,1792.5,5.233]
[1743930552774,7.47325761,1792.6,1792.5,5.71936042]
[1743930557374,7.47325761,1792.6,1792.5,0.48636042]
[1743930557578,7.47325761,1792.6,1792.5,5.232]
[1743930557768,7.47325761,1792.6,1792.5,5.71837627]
[1743930561473,6.91095761,1792.6,1792.5,5.71837627]
[1743930563151,8.98528696,1792.6,1792.5,5.71837627]
[1743930563343,8.98528696,1792.6,1792.5,0.48637627]
[1743930563613,8.98528696,1792.6,1792.1,25.099]
[1743930563614,3.90581,1792.2,1792.1,25.099]
[1743930563949,7.46811,1792.2,1792.1,30.331]
[1743930564144,7.46811,1792.2,1792.1,25.099]
[1743930564350,12.91008388,1792.2,1792.1,25.099]
[1743930566979,11.77270588,1792.2,1792.1,25.099]
[1743930567185,6.90581,1792.2,1792.1,25.099]
[1743930570802,7.3277365,1792.2,1792.1,25.099]
[1743930571800,7.3277365,1792.2,1792.1,25.46739177]
[1743930574410,3.90567,1792.3,1792.1,25.46739177]
[1743930575163,3.90567,1792.3,1792.2,0.8072]
[1743930575368,0.4090947,1792.3,1792.2,1.17522635]
[1743930575584,3.90559,1792.3,1792.2,1.17522635]
[1743930575982,3.90539,1792.4,1792.2,1.17522635]
[1743930578005,6.91100761,1792.6,1792.3,0.8072]
[1743930578171,6.91100761,1792.6,1792.4,5.231]
[1743930578375,6.91100761,1792.6,1792.5,0.5231]
[1743930578576,7.32436641,1792.6,1792.5,0.89021928]
[1743930578783,7.32436641,1792.6,1792.5,1.69741928]
[1743930579007,4.32436641,1792.6,1792.5,1.69741928]
[1743930580491,4.32436641,1792.6,1792.5,0.36711928]
[1743930580689,4.88666641,1792.6,1792.5,0.36711928]
[1743930590723,7.88666641,1792.6,1792.5,0.36711928]
[1743930593594,7.32436641,1792.6,1792.5,0.36711928]
[1743930619744,4.32436641,1792.6,1792.5,0.36711928]
[1743930620080,4.32431641,1792.6,1792.5,1.15811928]
[1743930622974,3.91095761,1792.6,1792.5,1.15811928]
[1743930624378,0.00601761,1792.6,1792.5,1.15811928]
[1743930624862,3.91095761,1792.6,1792.5,1.15811928]
[1743930626038,4.32079092,1792.6,1792.5,1.15811928]
[1743930626773,0.00601761,1792.6,1792.5,1.15811928]
[1743930628475,3.91095761,1792.6,1792.5,1.15811928]
[1743930629847,0.00601761,1792.6,1792.5,1.15811928]
[1743930631478,0.00601761,1792.6,1792.5,1.3821098]
[1743930637295,3.91095761,1792.6,1792.5,1.3821098]
[1743930638972,3.91095761,1792.6,1792.5,0.5911098]
[1743930639162,3.91095761,1792.6,1792.5,5.8191098]
[1743930639365,3.91095761,1792.6,1792.5,5.228]
[1743930639578,3.91095761,1792.6,1792.5,5.81910082]
[1743930642901,3.91095761,1792.6,1792.5,5.81910082]
[1743930645498,3.91095761,1792.6,1792.5,5.81810082]
[1743930645807,4.47325761,1792.6,1792.5,5.81810082]
[1743930646611,3.91095761,1792.6,1792.5,5.81810082]
[1743930654608,8.61207846,1792.6,1792.5,5.81810082]
[1743930656204,8.61207846,1792.6,1792.5,0.59110082]
[1743930656615,6.90537,1792.4,1792.3,5.227]
[1743930661926,6.90537,1792.4,1792.3,5.80804616]
[1743930663195,6.90537,1792.4,1792.3,6.59704616]
[1743930665812,3.90537,1792.4,1792.3,6.59704616]
[1743930671320,7.81055,1792.5,1792.3,6.59704616]
[1743930672338,3.90524,1792.5,1792.3,6.59704616]
[1743930673201,0.00601761,1792.6,1792.4,0.84418814]
[1743930673401,0.00601761,1792.6,1792.5,4.69356]
[1743930673636,0.00601761,1792.6,1792.5,1.36293921]
[1743930674235,0.00601761,1792.6,1792.5,5.81809921]
[1743930679565,0.00601761,1792.6,1792.5,1.36293921]
[1743930679852,0.00601761,1792.6,1792.5,6.58893921]
[1743930682439,0.00601761,1792.6,1792.5,5.80053921]
[1743930683962,0.00601761,1792.6,1792.5,5.79953921]
[1743930685130,3.91095761,1792.6,1792.5,5.79953921]
[1743930692253,0.00601761,1792.6,1792.5,5.79953921]
[1743930696383,3.91095761,1792.6,1792.5,5.79953921]
[1743930697886,0.00601761,1792.6,1792.5,5.79953921]
[1743930712411,3.91095761,1792.6,1792.5,5.79953921]
[1743930713004,4.47325761,1792.6,1792.5,5.79853921]
[1743930720324,4.47325761,1792.6,1792.5,0.57453921]
[1743930720535,5.56926175,1792.6,1792.5,5.224]
[1743930720689,5.56926175,1792.6,1792.5,5.79829459]
[1743930722634,4.47325761,1792.6,1792.5,5.79829459]
[1743930722799,7.47325761,1792.6,1792.5,0.57429459]
[1743930723009,7.47325761,1792.6,1792.5,5.79829459]
[1743930723211,7.47325761,1792.6,1792.5,5.224]
[1743930723507,7.47325761,1792.6,1792.5,5.79829459]
[1743930725535,8.86926175,1792.6,1792.5,0.57429459]
[1743930725825,7.46746,1792.5,1792.4,5.224]
[1743930726012,10.04951378,1792.5,1792.4,5.224]
[1743930727534,3.90559,1792.3,1792.2,25.095]
[1743930727719,3.90559,1792.3,1792.2,30.319]
[1743930729432,3.90541,1792.4,1792.2,30.319]
[1743930731230,3.90559,1792.3,1792.2,30.319]
[1743930732429,3.90541,1792.4,1792.2,30.319]
[1743930734940,7.81095,1792.4,1792.2,30.319]
[1743930735441,3.90541,1792.4,1792.2,30.319]
[1743930735831,7.81094,1792.4,1792.2,30.319]
[1743930736008,3.90541,1792.4,1792.2,30.319]
[1743930736742,3.90541,1792.4,1792.3,0.57597734]
[1743930737540,7.32746535,1792.5,1792.3,0.57597734]
[1743930737838,7.32746535,1792.5,1792.3,1.35747734]
[1743930738350,11.23277535,1792.5,1792.3,1.35747734]
[1743930738519,3.90537,1792.4,1792.3,1.35747734]
[1743930738716,3.90537,1792.4,1792.3,0.57597734]
[1743930741051,7.32746535,1792.5,1792.4,0.7815]
[1743930741418,7.32746535,1792.5,1792.4,1.35701343]
[1743930744556,7.32746535,1792.5,1792.4,0.57551343]
[1743930744852,11.23279535,1792.5,1792.3,0.7815]
[1743930745016,11.23279535,1792.5,1792.4,0.57551343]
[1743930745419,11.23279535,1792.5,1792.3,0.7815]
[1743930745620,11.23279535,1792.5,1792.4,0.57551343]
[1743930746055,11.23279535,1792.5,1792.3,0.7815]
[1743930746231,11.23279535,1792.5,1792.4,0.57551343]
[1743930746562,11.23279535,1792.5,1792.3,0.7815]
[1743930746756,11.23279535,1792.5,1792.4,0.57551343]
[1743930747056,11.23279535,1792.5,1792.3,0.7815]
[1743930747353,11.23279535,1792.5,1792.4,0.57551343]
[1743930747556,11.23279535,1792.5,1792.3,0.7815]
[1743930747722,11.23279535,1792.5,1792.4,0.57551343]
[1743930747921,11.23279535,1792.5,1792.3,0.7815]
[1743930748122,11.23279535,1792.5,1792.4,0.57551343]
[1743930748345,11.23279535,1792.5,1792.3,0.7815]
[1743930748657,7.32746535,1792.5,1792.4,0.57551343]
[1743930748954,11.23280535,1792.5,1792.3,0.7815]
[1743930749168,11.23280535,1792.5,1792.4,0.57551343]
[1743930749323,11.23280535,1792.5,1792.3,0.7815]
[1743930749522,11.23280535,1792.5,1792.4,0.57551343]
[1743930749755,11.23280535,1792.5,1792.3,0.7815]
[1743930749945,11.23280535,1792.5,1792.4,0.57551343]
[1743930750148,11.23280535,1792.5,1792.3,0.7815]
[1743930750456,11.23280535,1792.5,1792.4,0.57551343]
[1743930750753,11.23280535,1792.5,1792.3,0.7815]
[1743930750955,7.32746535,1792.5,1792.4,0.57551343]
[1743930751155,11.23277535,1792.5,1792.3,0.7815]
[1743930751357,11.23277535,1792.5,1792.4,0.57551343]
[1743930751544,11.23277535,1792.5,1792.3,0.7815]
[1743930751744,11.23277535,1792.5,1792.4,0.57551343]
[1743930751940,11.23277535,1792.5,1792.3,0.7815]
[1743930752259,11.23277535,1792.5,1792.4,0.57551343]
[1743930752554,11.23277535,1792.5,1792.3,0.7815]
[1743930752756,11.23277535,1792.5,1792.4,0.57551343]
[1743930752956,3.90537,1792.4,1792.3,0.7815]
[1743930753158,3.90537,1792.4,1792.3,1.35739492]
[1743930759566,11.23276535,1792.5,1792.3,1.35739492]
[1743930759770,3.90537,1792.4,1792.3,1.35739492]
[1743930760171,7.32748535,1792.5,1792.3,1.35739492]
[1743930762871,11.23279535,1792.5,1792.3,1.35739492]
[1743930763271,3.90537,1792.4,1792.3,1.35739492]
[1743930773187,3.90537,1792.4,1792.3,0.57589492]
[1743930781197,8.59095553,1792.4,1792.3,0.57589492]
[1743930781376,8.59095553,1792.4,1792.1,25.097]
[1743930781377,3.90581,1792.2,1792.1,25.097]
[1743930781576,12.63221756,1792.2,1792.1,25.67333982]
[1743930781776,12.63221756,1792.2,1792.1,0.57633982]
[1743930781960,4.46855,1792.0,1791.9,5.221]
[1743930782160,7.05060378,1792.0,1791.9,5.70689264]
[1743930782989,7.05060378,1792.0,1791.9,0.48589264]
[1743930783392,3.90668,1791.8,1791.7,5.221]
[1743930783586,3.90668,1791.8,1791.7,5.70433409]
[1743930783891,7.05103378,1791.8,1791.7,5.70433409]
[1743930784676,11.44679116,1791.8,1791.7,0.48333409]
[1743930784883,11.44679116,1791.8,1791.7,5.70533409]
[1743930785059,11.44679116,1791.8,1791.7,5.222]
[1743930785259,11.44679116,1791.8,1791.7,5.70569085]
[1743930785484,11.44679116,1791.8,1791.7,0.48369085]
[1743930785691,10.88449116,1791.8,1791.7,0.48369085]
[1743930785887,7.4692,1791.7,1791.6,5.222]
[1743930786289,9.00456912,1791.7,1791.6,5.70607269]
[1743930786515,7.4692,1791.7,1791.6,5.70607269]
[1743930787580,6.9069,1791.7,1791.6,5.70607269]
[1743930790196,7.4692,1791.7,1791.6,0.48407269]
[1743930790396,6.90734,1791.5,1791.4,25.097]
[1743930790601,9.48939378,1791.5,1791.4,30.7649015]
[1743930793182,10.05169378,1791.5,1791.4,30.7649015]
[1743930793395,11.44758216,1791.5,1791.4,30.7649015]
[1743930795294,11.86528618,1791.5,1791.4,30.7649015]
[1743930796384,10.4693978,1791.5,1791.4,30.7649015]
[1743930796579,9.9070978,1791.5,1791.4,30.7649015]
[1743930797197,9.9070978,1791.5,1791.4,5.6679015]
[1743930799813,7.32504402,1791.5,1791.4,5.6679015]
[1743930801620,3.9068,1791.8,1791.5,0.7749]
[1743930801911,3.0,1791.7,1791.6,0.43995983]
[1743930802088,6.9069,1791.7,1791.6,0.43995983]
[1743930808614,3.0,1791.7,1791.6,0.43995983]
[1743930808915,3.90648,1791.9,1791.7,0.8041]
[1743930809124,3.90648,1791.9,1791.8,5.222]
[1743930809286,6.90648,1791.9,1791.8,5.63355494]
[1743930817226,8.85025794,1791.9,1791.8,0.41155494]
[1743930817431,3.90734,1791.5,1791.4,30.332]
[1743930817649,3.90734,1791.5,1791.4,30.74405806]
[1743930817928,4.33227735,1791.5,1791.4,30.74405806]
[1743930822504,7.33227735,1791.5,1791.4,30.74405806]
[1743930832537,7.89457735,1791.5,1791.4,25.52205806]
[1743930832743,7.89457735,1791.5,1791.4,30.74405806]
[1743930833747,7.33227735,1791.5,1791.4,30.74405806]
[1743930835552,7.33227735,1791.5,1791.4,5.63405806]
[1743930859967,7.89457735,1791.5,1791.4,5.63305806]
[1743930860177,8.77099586,1791.5,1791.4,5.63305806]
[1743930860553,7.33227735,1791.5,1791.4,5.63305806]
[1743930861862,7.33227735,1791.5,1791.4,6.45225806]
[1743930862039,3.0,1791.5,1791.4,6.45225806]
[1743930862639,3.0,1791.7,1791.5,0.8192]
[1743930862860,3.90688,1791.8,1791.6,0.37455009]
[1743930863378,3.90685,1791.8,1791.6,0.37455009]
[1743930863544,3.9069,1791.7,1791.6,0.37455009]
[1743930869183,3.9069,1791.7,1791.6,0.87455009]
[1743930875699,3.9069,1791.7,1791.6,6.09355009]
[1743930878867,3.9069,1791.7,1791.6,0.87455009]
[1743930879067,5.00304878,1791.7,1791.6,6.09355009]
[1743930880206,3.9069,1791.7,1791.6,6.09355009]
[1743930881007,3.90685,1791.8,1791.6,6.09355009]
[1743930881391,7.81368,1791.8,1791.6,6.09355009]
[1743930881916,7.81368,1791.8,1791.6,5.719]
[1743930882078,10.81368,1791.8,1791.7,0.37434857]
[1743930882273,3.9069,1791.7,1791.6,5.719]
[1743930882487,3.9069,1791.7,1791.6,6.09373035]
[1743930883910,3.9069,1791.7,1791.6,0.87473035]
[1743930884115,3.9069,1791.7,1791.6,6.09373035]
[1743930890826,0.4199856,1792.0,1791.7,0.7596]
[1743930890976,0.4199856,1792.0,1791.7,0.8154081]
[1743930890977,4.3263256,1792.0,1791.7,0.8154081]
[1743930891183,3.90634,1792.0,1791.8,0.37269388]
[1743930891693,6.90634,1792.0,1791.9,0.7596]
[1743930891876,6.90634,1792.0,1791.9,1.13207721]
[1743930899894,3.90583,1792.2,1791.9,1.13207721]
[1743930900219,3.90583,1792.2,1792.0,5.218]
[1743930900590,6.90583,1792.2,1792.1,0.37057117]
[1743930904707,3.0,1792.2,1792.1,1.13017117]
[1743930904908,3.0,1792.3,1792.1,1.13017117]
[1743930905291,3.90539,1792.4,1792.1,1.13017117]
[1743930907388,3.90516,1792.5,1792.2,0.833]
[1743930907626,0.00601761,1792.6,1792.3,4.73856]
[1743930907924,0.00601761,1792.6,1792.5,0.833]
[1743930908126,0.00601761,1792.6,1792.5,1.20144786]
[1743930915502,0.00601761,1792.6,1792.5,1.70144786]
[1743930922323,0.00601761,1792.6,1792.5,6.15660786]
[1743930922742,0.00601761,1792.6,1792.5,6.21238391]
[1743930922935,0.00601761,1792.6,1792.5,10.51445352]
[1743930923134,0.00601761,1792.6,1792.5,10.45867747]
[1743930924518,0.00601761,1792.6,1792.5,10.56068982]
[1743930925942,0.00601761,1792.6,1792.5,14.56068982]
[1743930927259,0.00601761,1792.6,1792.5,20.72068982]
[1743930931162,0.00601761,1792.6,1792.5,20.92465825]
[1743930933667,0.00601761,1792.6,1792.5,19.20241187]
[1743930941586,0.00601761,1792.6,1792.5,44.28941187]
[1743930942539,0.00601761,1792.6,1792.5,41.70958864]
[1743930942743,0.00601761,1792.6,1792.5,44.28941187]
[1743930949196,0.00601761,1792.6,1792.5,43.73941187]
[1743930949405,0.00601761,1792.6,1792.5,48.95041187]
[1743930949588,0.00601761,1792.6,1792.5,49.50041187]
[1743930949773,0.00601761,1792.6,1792.5,45.50041187]
[1743930954771,0.00601761,1792.6,1792.5,49.50041187]
[1743930959399,0.00601761,1792.6,1792.5,46.08758864]
[1743930961272,0.00601761,1792.6,1792.5,42.08758864]
[1743930962591,0.00601761,1792.6,1792.5,35.92758864]
[1743930962793,0.56831761,1792.6,1792.5,26.26142864]
[1743930962994,0.56831761,1792.6,1792.5,31.47242864]
[1743930963169,0.56831761,1792.6,1792.5,26.26142864]
[1743930963363,0.56831761,1792.6,1792.5,31.47242864]
[1743930963783,4.47325761,1792.6,1792.5,26.26142864]
[1743930963990,5.56904669,1792.6,1792.5,31.47242864]
[1743930964594,8.56904669,1792.6,1792.5,31.47242864]
[1743930965287,8.56904669,1792.6,1792.5,26.26142864]
[1743930965481,8.56904669,1792.6,1792.5,31.47242864]
[1743930965882,8.99412656,1792.6,1792.5,31.47242864]
[1743930970972,7.89833748,1792.6,1792.5,31.47242864]
[1743930972032,3.56831761,1792.6,1792.5,31.37041629]
[1743930972821,7.47325761,1792.6,1792.5,31.37041629]
[1743930974307,3.56831761,1792.6,1792.5,31.37041629]
[1743930974919,7.47325761,1792.6,1792.5,31.37041629]
[1743930983630,8.65315954,1792.6,1792.5,31.37141629]
[1743930984007,12.95718167,1792.6,1792.5,26.15941629]
[1743930984527,12.95718167,1792.6,1792.5,31.37141629]
[1743930985729,11.23597386,1792.6,1792.5,31.37141629]
[1743930986899,11.23597386,1792.6,1792.5,6.28441629]
[1743930987734,12.9579329,1792.6,1792.5,6.28441629]
[1743930990128,8.65315954,1792.6,1792.5,6.28441629]
[1743930991032,8.09085954,1792.6,1792.5,6.28441629]
[1743930991230,3.91095761,1792.6,1792.5,6.28441629]
[1743930991536,0.00601761,1792.6,1792.5,6.28441629]
[1743930995039,0.00601761,1792.6,1792.5,11.00797629]
[1743930995435,0.00601761,1792.6,1792.5,11.06375375]
[1743930995602,0.00601761,1792.6,1792.5,11.00797629]
[1743930995801,0.00601761,1792.6,1792.5,11.06375375]
[1743930996010,0.00601761,1792.6,1792.5,11.61375375]
[1743930996208,0.00601761,1792.6,1792.5,11.55797629]
[1743930997648,0.00601761,1792.6,1792.5,7.10281629]
[1743931003566,0.00601761,1792.6,1792.5,11.00797629]
[1743931004559,0.00601761,1792.6,1792.5,5.79597629]
[1743931004758,0.00601761,1792.6,1792.5,7.10181629]
[1743931005560,0.00601761,1792.6,1792.5,1.07241629]
[1743931005743,4.47325761,1792.6,1792.5,6.11963859]
[1743931006669,0.00601761,1792.6,1792.5,6.11963859]
[1743931010929,0.00601761,1792.6,1792.5,31.21263859]
[1743931019768,0.00601761,1792.6,1792.5,35.11779859]
[1743931020196,0.00601761,1792.6,1792.5,31.21263859]
[1743931022981,0.00601761,1792.6,1792.5,35.11779859]
[1743931024796,0.00601761,1792.6,1792.5,31.21263859]
[1743931025894,0.00601761,1792.6,1792.5,35.66779859]
[1743931026202,0.00601761,1792.6,1792.5,36.47149859]
[1743931035621,0.00601761,1792.6,1792.5,39.47149859]
[1743931035999,0.00601761,1792.6,1792.5,39.57351094]
[1743931036381,0.00601761,1792.6,1792.5,45.73351094]
[1743931036890,0.00601761,1792.6,1792.5,50.15366752]
[1743931037101,7.61e-06,1792.6,1792.5,50.15366752]
[1743931037409,3.90277,1793.6,1793.4,0.55]
[1743931037410,0.5623,1793.6,1793.4,0.55]
[1743931037619,0.5623,1793.6,1793.5,5.61043288]
[1743931037820,0.5623,1793.6,1793.5,5.25978082]
[1743931038894,4.46523,1793.6,1793.5,5.25978082]
[1743931039097,5.64414358,1793.6,1793.5,5.25978082]
[1743931040022,8.64414358,1793.6,1793.5,5.25978082]
[1743931042787,8.64414358,1793.6,1793.5,5.75978082]
[1743931044218,12.94891694,1793.6,1793.5,0.90143288]
[1743931045724,11.22414675,1793.6,1793.5,0.90143288]
[1743931047796,12.94360084,1793.6,1793.5,0.90143288]
[1743931056735,12.94360084,1793.6,1793.5,0.5]
[1743931061021,17.2430581,1793.6,1793.5,0.5]
[1743931061222,17.2430581,1793.6,1793.5,1e-05]
[1743931062070,3.90341,1793.3,1793.2,5.207]
[1743931062273,9.54583626,1793.3,1793.2,5.207]
[1743931062419,9.54583626,1793.3,1793.2,0.36835096]
[1743931062815,3.90385,1793.1,1793.0,5.207]
[1743931063242,3.90385,1793.1,1793.0,5.57613546]
[1743931064753,4.32263766,1793.1,1793.0,5.57613546]
[1743931069855,6.90362823,1793.1,1793.0,5.57613546]
[1743931080341,4.32263766,1793.1,1793.0,6.38733546]
[1743931080872,6.90371,1793.2,1793.0,6.38733546]
[1743931081079,3.0,1793.2,1793.1,0.8112]
[1743931081384,3.0,1793.2,1793.1,1.18007633]
[1743931081942,3.90321,1793.4,1793.2,0.7935]
[1743931082446,3.90321,1793.4,1793.3,0.36809192]
[1743931082858,3.9032,1793.4,1793.3,0.36809192]
[1743931083993,6.90878456,1793.5,1793.3,0.36809192]
[1743931084162,3.0,1793.5,1793.4,6.0005]
[1743931084490,3.9028,1793.6,1793.4,6.36808648]
[1743931084852,3.90298,1793.5,1793.4,6.36808648]
[1743931085259,3.9028,1793.6,1793.4,6.36808648]
[1743931085786,7.80572,1793.6,1793.4,6.36808648]
[1743931085984,3.9028,1793.6,1793.4,6.36808648]
[1743931086288,3.0,1793.6,1793.4,6.36808648]
[1743931086484,3.0,1793.6,1793.5,0.824]
[1743931086867,3.0,1793.6,1793.5,1.1901741]
[1743931088391,3.90255,1793.7,1793.5,1.1901741]
[1743931088580,3.0,1793.6,1793.5,1.1901741]
[1743931088886,4.32652656,1793.8,1793.5,1.1901741]
[1743931089091,3.90234,1793.8,1793.6,0.824]
[1743931089469,3.90234,1793.8,1793.7,0.36448448]
[1743931089900,3.90234,1793.8,1793.6,0.824]
[1743931090101,3.90234,1793.8,1793.7,0.36445617]
[1743931090402,3.90254,1793.7,1793.6,0.824]
[1743931091266,3.90234,1793.8,1793.6,0.824]
[1743931093795,3.90254,1793.7,1793.6,0.824]
[1743931096676,3.90238,1793.8,1793.6,0.824]
[1743931096874,3.90238,1793.8,1793.6,1.18801732]
[1743931097510,3.90254,1793.7,1793.6,1.18801732]
[1743931100692,3.90238,1793.8,1793.6,1.18801732]
[1743931101279,3.90233,1793.8,1793.6,1.18801732]
[1743931102104,3.90254,1793.7,1793.6,0.36401732]
[1743931102424,3.90285,1793.6,1793.4,5.207]
[1743931103121,3.90285,1793.6,1793.3,25.9115]
[1743931103415,3.90285,1793.6,1793.5,5.204]
[1743931109319,6.4817111,1793.7,1793.5,6.0107]
[1743931109513,2.5790911,1793.7,1793.5,6.0107]
[1743931109816,3.0,1793.8,1793.5,6.0107]
[1743931110024,6.90246,1793.8,1793.5,6.0107]
[1743931110201,10.80494,1793.8,1793.5,6.0107]
[1743931111292,3.90267,1793.7,1793.5,6.0107]
[1743931111823,3.90267,1793.7,1793.6,0.36430276]
[1743931112388,9.4815511,1793.8,1793.6,0.36430276]
[1743931117334,2.5790911,1793.8,1793.6,0.36430276]
[1743931117639,6.4814211,1793.8,1793.6,0.36430276]
[1743931120721,3.90233,1793.8,1793.6,0.36430276]
[1743931120922,10.85344303,1793.9,1793.6,0.36430276]
[1743931121117,3.90236,1793.8,1793.6,0.36430276]
[1743931125020,3.90236,1793.8,1793.5,5.87062276]
[1743931125221,3.90236,1793.8,1793.7,0.33810848]
[1743931125746,3.90236,1793.8,1793.5,5.87062276]
[1743931125947,3.90236,1793.8,1793.6,0.33850062]
[1743931128654,7.80486,1793.8,1793.6,0.33850062]
[1743931129158,3.90254,1793.7,1793.6,0.33850062]
[1743931129518,3.90236,1793.8,1793.6,0.33850062]
[1743931130383,6.4816311,1793.7,1793.6,0.33850062]
[1743931130663,7.0439311,1793.7,1793.6,0.33850062]
[1743931130859,7.0439311,1793.7,1793.6,5.203]
[1743931131031,7.0439311,1793.7,1793.6,5.54150062]
[1743931133765,6.4816311,1793.7,1793.6,5.54150062]
[1743931133960,3.90241,1793.8,1793.6,6.30740062]
[1743931134142,6.95120303,1793.9,1793.6,6.30740062]
[1743931134547,10.85348303,1793.9,1793.6,6.30740062]
[1743931134967,10.85348303,1793.9,1793.6,1.10440062]
[1743931135270,3.90233,1793.8,1793.7,5.203]
[1743931135670,3.90233,1793.8,1793.7,5.54105638]
[1743931137572,5.0439133,1793.8,1793.7,5.54105638]
[1743931142276,3.90233,1793.8,1793.7,5.54105638]
[1743931143176,6.95120303,1793.9,1793.7,6.30695638]
[1743931146171,10.85346303,1793.9,1793.7,6.30695638]
[1743931146378,10.85346303,1793.9,1793.7,5.54105638]
[1743931146379,3.90233,1793.8,1793.7,5.54105638]
[1743931149464,6.95120303,1793.9,1793.7,5.54105638]
[1743931152571,0.46998193,1793.9,1793.8,0.7923]
[1743931152773,0.05,1793.9,1793.8,0.88620409]
[1743931152972,0.05,1793.9,1793.8,5.63657382]
[1743931153500,0.05,1793.9,1793.8,5.58083409]
[1743931159610,0.05,1793.9,1793.8,11.74083409]
[1743931161998,0.05,1793.9,1793.8,15.74083409]
[1743931163627,0.05,1793.9,1793.8,11.74083409]
[1743931168755,0.05,1793.9,1793.8,36.81283409]
[1743931196812,0.05,1793.9,1793.8,41.31283409]
[1743931200903,0.05,1793.9,1793.8,45.31283409]
[1743931205131,0.05,1793.9,1793.8,48.31283409]
[1743931205332,0.05,1793.9,1793.8,48.41477251]
[1743931217531,0.5623,1794.4,1794.3,9.97956376]
[1743931220731,0.5623,1794.6,1794.4,4.45092]
[1743931220930,0.5623,1794.6,1794.5,3.9008]
[1743931221163,0.5623,1794.6,1794.5,4.23134023]
[1743931221660,0.5623,1794.6,1794.5,0.33054023]
[1743931223467,0.5623,1794.6,1794.5,4.23134023]
[1743931230774,0.5623,1794.6,1794.5,29.29634023]
[1743931231575,0.5623,1794.6,1794.5,29.44172222]
[1743931236980,0.5623,1794.7,1794.5,29.44172222]
[1743931237151,0.5623,1794.7,1794.5,25.54092222]
[1743931237679,0.5623,1794.7,1794.5,29.44171222]
[1743931238756,0.5623,1794.7,1794.6,0.55]
[1743931239256,0.5623,1794.7,1794.6,1.02544379]
[1743931244895,0.5623,1794.8,1794.6,1.02544379]
[1743931245095,0.5623,1794.8,1794.7,5.195]
[1743931245292,0.5623,1794.8,1794.7,5.66974156]
[1743931248312,0.6123,1794.9,1794.7,5.66974156]
[1743931249025,0.6123,1794.9,1794.7,9.57010156]
[1743931249526,0.6123,1794.9,1794.8,4.45015]
[1743931249712,0.05,1794.9,1794.8,4.92449186]
[1743931250113,0.05,1794.9,1794.8,29.98849186]
[1743931250801,0.05,1794.9,1794.8,26.08834186]
[1743931251012,0.6123,1794.9,1794.8,25.53834186]
[1743931251631,0.05,1794.9,1794.8,29.98849186]
[1743931254722,0.05,1794.9,1794.8,30.81099186]
[1743931254904,0.05,1794.9,1794.8,36.38773176]
[1743931255116,0.05,1794.9,1794.8,33.81099186]
[1743931255799,0.05,1794.9,1794.8,37.81099186]
[1743931256921,0.05,1794.9,1794.8,34.81099186]
[1743931257327,0.05,1794.9,1794.8,34.78789164]
[1743931261501,0.05,1794.9,1794.8,40.94789164]
[1743931262425,0.05,1794.9,1794.8,40.12539164]
[1743931262645,0.05,1794.9,1794.8,41.31839164]
[1743931263517,0.05,1794.9,1794.8,40.76839164]
[1743931263905,0.05,1794.9,1794.8,41.31839164]
[1743931264318,0.05,1794.9,1794.8,40.76839164]